[Event "V Sunway Sitges Open 2018"]
[Site "Sitges"]
[Date "2018.12.15"]
[Round "2"]
[White "Tateo, Ida"]
[Black "Vadillo, Torre Ismael"]
[Result "1-0"]
[ECO "C66"]
[WhiteElo "1206"]
[BlackElo "1616"]
[Annotator "NA"]
[PlyCount "71"]
[EventDate "2018.12.14"]
[EventType "swiss"]
[EventCountry "ESP"]
[SourceTitle "playchess.com"]
[Source "ChessBase"]
[SourceQuality "1"]
[TimeControl "40/5400+30:1800+30"]

1. e4 {[%emt 0:04:29]} e5 {[%emt 0:00:00]} 2. Nf3 {[%emt 0:00:57]} Nc6 {[%emt 0:00:00]} 3. Bb5 {[%emt 0:00:21]} Nf6 {[%emt 0:01:00]} 4. O-O {[%emt 0:00:34]} d6 {[%emt 0:00:16]} 5. Re1 {[%emt 0:00:29]} Bd7 {[%emt 0:00:36]} 6. c3 {[%emt 0:02:11]} a6 {[%emt 0:01:17]} 7. Ba4 {[%emt 0:00:19]} Be7 {[%emt 0:00:57]} 8. d4 {[%emt 0:00:26]} b5 {[%emt 0:02:09]} 9. Bc2 {[%emt 0:00:22]} O-O {[%emt 0:01:07]} 10. d5 {[%emt 0:01:18]} Na7 {[%emt 0:00:31]} 11. Nbd2 {[%emt 0:03:06]} c6 {[%emt 0:00:20]} 12. Nf1 {[%emt 0:01:30]} h6 {[%emt 0:04:19]} 13. a4 {[%emt 0:03:48]} cxd5 {[%emt 0:09:48]} 14. exd5 {[%emt 0:02:18]} bxa4 {[%emt 0:01:32]} 15. Bxa4 {[%emt 0:00:49]} Qa5 {[%emt 0:00:48]} 16. c4 {[%emt 0:02:55]} e4 {[%emt 0:07:23]} 17. Bd2 {[%emt 0:07:27]} Bxa4 {[%emt 0:04:15]} 18. Rxa4 {[%emt 0:03:08]} Qc7 {[%emt 0:06:12]} 19. Nd4 {[%emt 0:05:49]} Rfb8 {[%emt 0:13:26]} 20. b3 {[%emt 0:02:09]} Qc5 {[%emt 0:13:02]} 21. Be3 {[%emt 0:06:02]} Qc8 {[%emt 0:00:41]} 22. Ng3 {[%emt 0:01:31]} Qb7 {[%emt 0:10:49]} 23. Ngf5 {[%emt 0:02:36]} Bf8 {[%emt 0:00:52]} 24. Bf4 {[%emt 0:04:06]} Rd8 {[%emt 0:01:09]} 25. Bd2 {[%emt 0:12:13]} Rd7 {[%emt 0:03:44]} 26. Re3 {[%emt 0:02:04]} Qb6 {[%emt 0:02:55]} 27. Bc3 {[%emt 0:01:43]} g6 {[%emt 0:02:27]} 28. Rg3 {[%emt 0:04:31]} Kh7 {[%emt 0:00:47]} 29. Ne3 {[%emt 0:01:40]} Nh5 {[%emt 0:01:55]} 30. Rg4 {[%emt 0:02:51]} f5 {[%emt 0:01:31]} 31. Rh4 {[%emt 0:01:07]} f4 {[%emt 0:03:09]} 32. Ng4 {[%emt 0:02:09]} Be7 {[%emt 0:01:03]} 33. Rh3 {[%emt 0:01:44]} Re8 {[%emt 0:01:11]} 34. Ne6 {[%emt 0:02:18]} Bg5 {[%emt 0:00:56]} 35. Nxg5+ {[%emt 0:04:45]} hxg5 {[%emt 0:01:44]} 36. Nf6+ {[%emt 0:00:22]} 1-0

[Event "V Sunway Sitges Open 2018"]
[Site "Sitges"]
[Date "2018.12.16"]
[Round "3"]
[White "Blechzin, Igor"]
[Black "Gluckman, Paul"]
[Result "1/2-1/2"]
[ECO "A05"]
[WhiteElo "2237"]
[BlackElo "1889"]
[Annotator "NA"]
[PlyCount "75"]
[EventDate "2018.12.14"]
[EventType "swiss"]
[EventCountry "ESP"]
[SourceTitle "playchess.com"]
[Source "ChessBase"]
[SourceQuality "1"]
[TimeControl "40/5400+30:1800+30"]

1. Nf3 {[%emt 0:00:00]} Nf6 {[%emt 0:00:00]} 2. c4 {[%emt 0:00:00]} g6 {[%emt 0:00:59]} 3. d4 {[%emt 0:00:09]} Bg7 {[%emt 0:00:12]} 4. g3 {[%emt 0:00:06]} c6 {[%emt 0:00:28]} 5. Bg2 {[%emt 0:00:40]} O-O {[%emt 0:00:51]} 6. O-O {[%emt 0:00:23]} d5 {[%emt 0:00:12]} 7. Nbd2 {[%emt 0:02:34]} Nbd7 {[%emt 0:12:54]} 8. Qc2 {[%emt 0:02:30]} Nb6 {[%emt 0:07:18]} 9. b3 {[%emt 0:07:40]} Bf5 {[%emt 0:01:39]} 10. Qd1 {[%emt 0:07:00]} Ne4 {[%emt 0:02:22]} 11. Bb2 {[%emt 0:01:17]} a5 {[%emt 0:15:26]} 12. cxd5 {[%emt 0:12:16]} cxd5 {[%emt 0:00:33]} 13. Ne5 {[%emt 0:01:03]} a4 {[%emt 0:02:54]} 14. Nxe4 {[%emt 0:01:45]} Bxe4 {[%emt 0:01:17]} 15. Bh3 {[%emt 0:03:18]} Qd6 {[%emt 0:05:18]} 16. Qd2 {[%emt 0:13:58]} Bf5 {[%emt 0:04:34]} 17. Bxf5 {[%emt 0:00:19]} gxf5 {[%emt 0:00:09]} 18. Bc3 {[%emt 0:00:55]} Rfc8 {[%emt 0:05:00]} 19. Rac1 {[%emt 0:06:14]} Bh6 {[%emt 0:05:15]} 20. e3 {[%emt 0:00:52]} Nd7 {[%emt 0:00:46]} 21. Bb4 {[%emt 0:02:45]} Nxe5 {[%emt 0:01:14]} 22. dxe5 {[%emt 0:01:02]} Qxe5 {[%emt 0:00:07]} 23. bxa4 {[%emt 0:00:45]} Rxc1 {[%emt 0:01:13]} 24. Rxc1 {[%emt 0:00:52]} d4 {[%emt 0:00:16]} 25. Rc5 {[%emt 0:04:42]} dxe3 {[%emt 0:01:19]} 26. Rxe5 {[%emt 0:00:05]} exd2 {[%emt 0:00:06]} 27. Rd5 {[%emt 0:00:05]} e6 {[%emt 0:03:11]} 28. Rd7 {[%emt 0:01:16]} Rxa4 {[%emt 0:08:07]} 29. Bxd2 {[%emt 0:07:21]} Bxd2 {[%emt 0:02:55]} 30. Rxd2 {[%emt 0:00:07]} Rc4 {[%emt 0:04:17]} 31. Rb2 {[%emt 0:01:54]} Rc7 {[%emt 0:00:15]} 32. Kg2 {[%emt 0:01:12]} Kf8 {[%emt 0:00:55]} 33. Kf3 {[%emt 0:00:24]} Ke7 {[%emt 0:00:12]} 34. Rb6 {[%emt 0:03:16]} Kf6 {[%emt 0:00:40]} 35. a4 {[%emt 0:01:10]} Ke5 {[%emt 0:01:49]} 36. h3 {[%emt 0:01:57]} Kd5 {[%emt 0:02:33]} 37. g4 {[%emt 0:03:17]} Ke5 {[%emt 0:03:03]} 38. Rb5+ 1/2-1/2

[Event "V Sunway Sitges Open 2018"]
[Site "Sitges"]
[Date "2018.12.16"]
[Round "3"]
[White "Dev, Shah"]
[Black "Munoz Suarez, Luis Alberto"]
[Result "1-0"]
[ECO "E85"]
[WhiteElo "2159"]
[BlackElo "1937"]
[Annotator "NA"]
[PlyCount "65"]
[EventDate "2018.12.14"]
[EventType "swiss"]
[EventCountry "ESP"]
[SourceTitle "playchess.com"]
[Source "ChessBase"]
[SourceQuality "1"]
[TimeControl "40/5400+30:1800+30"]

1. d4 {[%emt 0:00:28]} Nf6 {[%emt 0:01:28]} 2. c4 {[%emt 0:00:12]} g6 {[%emt 0:00:10]} 3. Nc3 {[%emt 0:00:07]} Bg7 {[%emt 0:00:06]} 4. e4 {[%emt 0:00:07]} d6 {[%emt 0:00:09]} 5. f3 {[%emt 0:00:13]} O-O {[%emt 0:00:09]} 6. Be3 {[%emt 0:00:04]} e5 {[%emt 0:00:16]} 7. Nge2 {[%emt 0:00:31]} Nh5 {[%emt 0:01:42]} 8. g4 {[%emt 0:02:58]} Nf4 {[%emt 0:00:16]} 9. Nxf4 {[%emt 0:17:23]} exf4 {[%emt 0:00:30]} 10. Bxf4 {[%emt 0:02:34]} f5 {[%emt 0:01:55]} 11. gxf5 {[%emt 0:03:45]} gxf5 {[%emt 0:00:13]} 12. Qd2 {[%emt 0:09:10]} Qh4+ {[%emt 0:16:47]} 13. Bg3 {[%emt 0:01:25]} Qh5 {[%emt 0:01:22]} 14. Be2 {[%emt 0:15:20]} fxe4 {[%emt 0:16:00]} 15. fxe4 {[%emt 0:08:11]} Bg4 {[%emt 0:05:41]} 16. Rg1 {[%emt 0:14:11]} Nc6 {[%emt 0:07:30]} 17. Bxg4 {[%emt 0:13:54]} Qxg4 {[%emt 0:00:35]} 18. Bf2 {[%emt 0:00:07]} Qh5 {[%emt 0:09:39]} 19. Qg5 {[%emt 0:04:14]} Qxg5 {[%emt 0:02:26]} 20. Rxg5 {[%emt 0:00:03]} Kh8 {[%emt 0:00:13]} 21. Rd1 {[%emt 0:01:23]} Rf7 {[%emt 0:07:20]} 22. Rg2 {[%emt 0:02:17]} Re8 {[%emt 0:08:07]} 23. Ke2 {[%emt 0:00:52]} Na5 {[%emt 0:05:03]} 24. b3 {[%emt 0:01:45]} c5 {[%emt 0:00:24]} 25. Rd3 {[%emt 0:00:16]} Nc6 {[%emt 0:01:25]} 26. dxc5 {[%emt 0:00:30]} Ne5 {[%emt 0:06:46]} 27. Rdg3 {[%emt 0:00:21]} Ng6 {[%emt 0:00:15]} 28. Nd5 {[%emt 0:00:24]} dxc5 {[%emt 0:03:27]} 29. Bxc5 {[%emt 0:00:25]} b6 {[%emt 0:01:33]} 30. Bb4 {[%emt 0:01:01]} Rxe4+ {[%emt 0:02:09]} 31. Re3 {[%emt 0:00:11]} Rxe3+ {[%emt 0:00:53]} 32. Kxe3 {[%emt 0:00:10]} Rd7 {[%emt 0:01:31]} 33. Ke4 1-0

[Event "V Sunway Sitges Open 2018"]
[Site "Sitges"]
[Date "2018.12.16"]
[Round "3"]
[White "Low, Kevin"]
[Black "Blasco Coll, Andreu"]
[Result "1-0"]
[ECO "B48"]
[WhiteElo "2072"]
[BlackElo "2240"]
[Annotator "NA"]
[PlyCount "55"]
[EventDate "2018.12.14"]
[EventType "swiss"]
[EventCountry "ESP"]
[SourceTitle "playchess.com"]
[Source "ChessBase"]
[SourceQuality "1"]
[TimeControl "40/5400+30:1800+30"]

1. e4 {[%emt 0:00:00]} c5 {[%emt 0:00:00]} 2. Nf3 {[%emt 0:00:00]} e6 {[%emt 0:00:00]} 3. d4 {[%emt 0:00:05]} cxd4 {[%emt 0:00:00]} 4. Nxd4 {[%emt 0:00:10]} Nc6 {[%emt 0:00:00]} 5. Nc3 {[%emt 0:00:05]} Qc7 {[%emt 0:00:13]} 6. Be3 {[%emt 0:00:06]} a6 {[%emt 0:00:13]} 7. Qd2 {[%emt 0:00:06]} Nf6 {[%emt 0:00:10]} 8. O-O-O {[%emt 0:00:09]} Be7 {[%emt 0:00:14]} 9. f3 {[%emt 0:00:06]} h5 {[%emt 0:00:14]} 10. Kb1 {[%emt 0:01:57]} b5 {[%emt 0:01:14]} 11. h4 {[%emt 0:07:16]} Bb7 {[%emt 0:07:52]} 12. Bf4 {[%emt 0:01:07]} e5 {[%emt 0:01:42]} 13. Nf5 {[%emt 0:00:12]} exf4 {[%emt 0:04:54]} 14. Nd5 {[%emt 0:00:08]} Qb8 15. Nxg7+ {[%emt 0:40:49]} Kf8 {[%emt 0:08:16]} 16. Nf5 {[%emt 0:00:09]} Qe5 {[%emt 0:10:23]} 17. Nxf4 {[%emt 0:07:05]} Rd8 {[%emt 0:08:28]} 18. c4 {[%emt 0:07:32]} bxc4 {[%emt 0:19:19]} 19. Bxc4 {[%emt 0:00:27]} d5 {[%emt 0:00:31]} 20. Nxd5 {[%emt 0:04:57]} Nxd5 {[%emt 0:01:22]} 21. Bxd5 {[%emt 0:00:22]} Nb4 {[%emt 0:01:22]} 22. Nxe7 {[%emt 0:00:30]} Qxe7 {[%emt 0:00:24]} 23. Qc3 {[%emt 0:00:12]} Rh6 {[%emt 0:04:47]} 24. Bxb7 {[%emt 0:01:03]} Rxd1+ {[%emt 0:00:22]} 25. Rxd1 {[%emt 0:00:01]} Qxb7 {[%emt 0:00:59]} 26. Qc5+ {[%emt 0:03:18]} Kg7 {[%emt 0:04:18]} 27. Qe5+ {[%emt 0:02:01]} Kh7 {[%emt 0:06:43]} 28. Rd8 {[%emt 0:00:14]} 1-0

[Event "V Sunway Sitges Open 2018"]
[Site "Sitges"]
[Date "2018.12.16"]
[Round "3"]
[White "Low, Ethan"]
[Black "Pedashenko, Anatoly"]
[Result "1/2-1/2"]
[ECO "B51"]
[WhiteElo "1885"]
[BlackElo "1985"]
[Annotator "NA"]
[PlyCount "80"]
[EventDate "2018.12.14"]
[EventType "swiss"]
[EventCountry "ESP"]
[SourceTitle "playchess.com"]
[Source "ChessBase"]
[SourceQuality "1"]
[TimeControl "40/5400+30:1800+30"]

1. e4 {[%emt 0:00:00]} c5 {[%emt 0:00:00]} 2. Nf3 {[%emt 0:00:00]} d6 {[%emt 0:00:00]} 3. Bb5+ {[%emt 0:00:00]} Nd7 {[%emt 0:00:00]} 4. c3 {[%emt 0:00:22]} Qa5 {[%emt 0:07:26]} 5. Bd3 {[%emt 0:05:29]} Ngf6 {[%emt 0:01:08]} 6. Bc2 {[%emt 0:02:22]} g6 {[%emt 0:01:41]} 7. O-O {[%emt 0:01:36]} c4 {[%emt 0:04:20]} 8. Qe2 {[%emt 0:21:22]} Nb6 {[%emt 0:07:14]} 9. Na3 {[%emt 0:09:39]} Be6 {[%emt 0:22:35]} 10. Nd4 {[%emt 0:10:59]} Bg4 {[%emt 0:00:42]} 11. f3 {[%emt 0:01:05]} Bd7 {[%emt 0:00:02]} 12. Qf2 {[%emt 0:15:58]} Bg7 {[%emt 0:02:32]} 13. d3 {[%emt 0:01:51]} e5 {[%emt 0:03:56]} 14. Ne2 {[%emt 0:00:24]} cxd3 {[%emt 0:01:19]} 15. Bxd3 {[%emt 0:00:06]} O-O {[%emt 0:08:04]} 16. Nc4 {[%emt 0:06:39]} Nxc4 {[%emt 0:00:55]} 17. Bxc4 {[%emt 0:00:05]} Rac8 {[%emt 0:00:11]} 18. Bb3 {[%emt 0:00:35]} Be6 {[%emt 0:02:44]} 19. Be3 {[%emt 0:01:10]} Nd7 {[%emt 0:03:32]} 20. Rfd1 {[%emt 0:02:49]} Qa6 {[%emt 0:03:30]} 21. Ng3 {[%emt 0:02:47]} Nc5 {[%emt 0:03:32]} 22. Bxe6 {[%emt 0:06:30]} fxe6 {[%emt 0:00:21]} 23. Qe2 {[%emt 0:02:26]} Qc6 {[%emt 0:03:10]} 24. c4 {[%emt 0:02:28]} Na4 {[%emt 0:01:21]} 25. Rac1 {[%emt 0:00:33]} Rfd8 {[%emt 0:01:03]} 26. b3 {[%emt 0:00:59]} Nc5 {[%emt 0:00:36]} 27. Nh1 {[%emt 0:02:31]} b6 {[%emt 0:00:54]} 28. Nf2 {[%emt 0:00:23]} Qb7 {[%emt 0:03:25]} 29. Rc2 {[%emt 0:02:03]} Na6 {[%emt 0:01:14]} 30. Rcd2 {[%emt 0:00:39]} Qc7 {[%emt 0:00:40]} 31. Bg5 {[%emt 0:00:42]} Rd7 {[%emt 0:00:23]} 32. Ng4 {[%emt 0:00:15]} Rf8 {[%emt 0:02:29]} 33. Qe1 {[%emt 0:00:57]} h5 {[%emt 0:02:23]} 34. Ne3 {[%emt 0:00:29]} Qc5 {[%emt 0:01:44]} 35. Kh1 {[%emt 0:00:26]} Nb8 {[%emt 0:00:38]} 36. Nc2 {[%emt 0:00:20]} Qc7 {[%emt 0:01:07]} 37. Na3 {[%emt 0:00:33]} a6 {[%emt 0:00:39]} 38. Be3 {[%emt 0:00:18]} Nc6 {[%emt 0:00:24]} 39. Nc2 {[%emt 0:00:26]} Bf6 {[%emt 0:00:28]} 40. Qg3 {[%emt 0:00:00]} Kg7 {[%emt 0:00:00]} 1/2-1/2

[Event "V Sunway Sitges Open 2018"]
[Site "Sitges"]
[Date "2018.12.16"]
[Round "3"]
[White "Josep Lluis, Josep Lluis"]
[Black "Tateo, Ida"]
[Result "1-0"]
[ECO "E67"]
[WhiteElo "1759"]
[BlackElo "1206"]
[Annotator "NA"]
[PlyCount "105"]
[EventDate "2018.12.14"]
[EventType "swiss"]
[EventCountry "ESP"]
[SourceTitle "playchess.com"]
[Source "ChessBase"]
[SourceQuality "1"]
[TimeControl "40/5400+30:1800+30"]

1. d4 {[%emt 0:00:00]} Nf6 {[%emt 0:00:00]} 2. c4 {[%emt 0:00:00]} g6 {[%emt 0:00:00]} 3. g3 {[%emt 0:00:06]} Bg7 {[%emt 0:00:04]} 4. Bg2 {[%emt 0:00:09]} d6 {[%emt 0:00:17]} 5. Nc3 {[%emt 0:00:22]} O-O 6. Nf3 Nbd7 7. O-O Re8 {[%emt 0:03:52]} 8. e4 {[%emt 0:01:29]} e5 {[%emt 0:00:22]} 9. d5 {[%emt 0:00:16]} Nc5 {[%emt 0:01:04]} 10. Re1 {[%emt 0:00:12]} a5 {[%emt 0:00:21]} 11. a3 {[%emt 0:03:56]} Bd7 {[%emt 0:03:26]} 12. Qc2 {[%emt 0:00:23]} a4 {[%emt 0:01:49]} 13. Be3 {[%emt 0:01:17]} Nb3 {[%emt 0:03:31]} 14. Rab1 {[%emt 0:00:25]} Qc8 {[%emt 0:03:12]} 15. Nd2 {[%emt 0:00:54]} Nxd2 {[%emt 0:05:41]} 16. Qxd2 {[%emt 0:01:26]} Ng4 {[%emt 0:02:14]} 17. Rec1 {[%emt 0:07:52]} Nxe3 {[%emt 0:01:27]} 18. Qxe3 {[%emt 0:00:09]} Rf8 {[%emt 0:02:29]} 19. c5 {[%emt 0:00:27]} Qd8 {[%emt 0:02:08]} 20. b4 {[%emt 0:02:15]} f5 {[%emt 0:01:30]} 21. b5 {[%emt 0:01:56]} f4 {[%emt 0:00:51]} 22. Qd3 {[%emt 0:00:46]} Bg4 {[%emt 0:04:50]} 23. f3 {[%emt 0:01:10]} Bd7 {[%emt 0:01:39]} 24. c6 {[%emt 0:00:12]} Bc8 {[%emt 0:05:44]} 25. Qc4 {[%emt 0:00:22]} fxg3 {[%emt 0:01:49]} 26. hxg3 {[%emt 0:00:02]} Qg5 {[%emt 0:01:16]} 27. Nd1 {[%emt 0:04:44]} b6 {[%emt 0:02:25]} 28. Rc2 {[%emt 0:00:51]} Qxg3 {[%emt 0:01:23]} 29. Qe2 {[%emt 0:00:20]} Bh3 {[%emt 0:03:28]} 30. Qf2 {[%emt 0:00:16]} Qxg2+ {[%emt 0:02:31]} 31. Qxg2 {[%emt 0:00:00]} Bxg2 {[%emt 0:00:13]} 32. Kxg2 {[%emt 0:00:19]} Rf4 {[%emt 0:05:05]} 33. Rb4 {[%emt 0:00:24]} g5 {[%emt 0:05:14]} 34. Nb2 {[%emt 0:03:32]} Raf8 {[%emt 0:01:25]} 35. Rc3 {[%emt 0:03:20]} g4 {[%emt 0:05:53]} 36. fxg4 {[%emt 0:00:17]} Rxg4+ {[%emt 0:00:44]} 37. Rg3 {[%emt 0:00:01]} Rgf4 {[%emt 0:01:34]} 38. Nd3 {[%emt 0:00:33]} Rf1 {[%emt 0:02:26]} 39. Rxa4 {[%emt 0:00:39]} Rb1 {[%emt 0:03:21]} 40. Ra7 {[%emt 0:02:44]} Rff1 {[%emt 0:05:34]} 41. Rxc7 {[%emt 0:30:38]} Rg1+ {[%emt 0:30:32]} 42. Kh3 {[%emt 0:00:00]} Rxg3+ {[%emt 0:00:00]} 43. Kxg3 {[%emt 0:00:00]} Rb3 {[%emt 0:00:00]} 44. Rd7 {[%emt 0:00:00]} Rxd3+ {[%emt 0:00:00]} 45. Kg4 {[%emt 0:00:00]} Bf8 {[%emt 0:00:00]} 46. Rb7 {[%emt 0:00:00]} Rxa3 {[%emt 0:00:00]} 47. Rxb6 {[%emt 0:00:00]} Ra4 {[%emt 0:00:00]} 48. c7 {[%emt 0:00:00]} Rxe4+ {[%emt 0:00:00]} 49. Kf3 {[%emt 0:00:00]} Rc4 {[%emt 0:00:00]} 50. Rc6 {[%emt 0:00:00]} e4+ {[%emt 0:00:00]} 51. Ke2 {[%emt 0:00:00]} Rd4 {[%emt 0:06:48]} 52. c8=Q {[%emt 0:00:00]} Rxd5 {[%emt 0:00:19]} 53. Qe6+ {[%emt 0:00:00]} 1-0

[Event "V Sunway Sitges Open 2018"]
[Site "Sitges"]
[Date "2018.12.16"]
[Round "3"]
[White "Vadillo, Torre Ismael"]
[Black "Pifarre Gene, Joan Baptista"]
[Result "1/2-1/2"]
[ECO "D37"]
[WhiteElo "1616"]
[BlackElo "1456"]
[Annotator "NA"]
[PlyCount "88"]
[EventDate "2018.12.14"]
[EventType "swiss"]
[EventCountry "ESP"]
[SourceTitle "playchess.com"]
[Source "ChessBase"]
[SourceQuality "1"]
[TimeControl "40/5400+30:1800+30"]

1. d4 {[%emt 0:00:00]} d5 {[%emt 0:00:22]} 2. c4 {[%emt 0:00:00]} e6 {[%emt 0:00:33]} 3. Nc3 {[%emt 0:00:00]} Nf6 {[%emt 0:00:23]} 4. Nf3 {[%emt 0:00:26]} Nc6 {[%emt 0:03:06]} 5. Bg5 {[%emt 0:00:58]} Be7 {[%emt 0:01:53]} 6. e3 {[%emt 0:00:08]} a6 {[%emt 0:05:11]} 7. a4 {[%emt 0:00:18]} O-O {[%emt 0:01:05]} 8. Be2 {[%emt 0:01:16]} Rb8 {[%emt 0:07:18]} 9. O-O {[%emt 0:02:19]} Ne4 {[%emt 0:01:18]} 10. Bxe7 {[%emt 0:11:37]} Nxe7 {[%emt 0:01:42]} 11. Qc2 {[%emt 0:02:01]} Nxc3 {[%emt 0:07:38]} 12. Qxc3 {[%emt 0:01:10]} c6 {[%emt 0:02:28]} 13. c5 {[%emt 0:05:24]} Ng6 {[%emt 0:00:30]} 14. Bd3 {[%emt 0:02:07]} f5 {[%emt 0:01:39]} 15. g3 {[%emt 0:01:34]} Qf6 {[%emt 0:03:25]} 16. a5 {[%emt 0:04:27]} h5 {[%emt 0:01:21]} 17. h4 {[%emt 0:00:17]} Bd7 {[%emt 0:02:27]} 18. Be2 {[%emt 0:04:15]} Nh8 {[%emt 0:07:09]} 19. Ne5 {[%emt 0:06:49]} Be8 {[%emt 0:01:40]} 20. f4 {[%emt 0:01:37]} g6 {[%emt 0:07:30]} 21. Qb3 {[%emt 0:01:08]} Nf7 {[%emt 0:00:24]} 22. Bxa6 {[%emt 0:02:22]} Nxe5 {[%emt 0:01:16]} 23. dxe5 {[%emt 0:02:01]} Qe7 {[%emt 0:00:07]} 24. Qb4 {[%emt 0:01:00]} Bf7 {[%emt 0:01:36]} 25. Be2 {[%emt 0:02:12]} Rfd8 {[%emt 0:00:39]} 26. Qd4 {[%emt 0:00:52]} Qc7 {[%emt 0:00:39]} 27. b4 {[%emt 0:00:17]} Ra8 {[%emt 0:00:42]} 28. Ra2 {[%emt 0:02:23]} Rdb8 {[%emt 0:05:36]} 29. Rfa1 {[%emt 0:00:43]} Be8 {[%emt 0:01:39]} 30. Ra3 {[%emt 0:13:05]} Bd7 {[%emt 0:00:42]} 31. R1a2 {[%emt 0:02:18]} Bc8 {[%emt 0:01:16]} 32. Kg2 {[%emt 0:03:51]} Ra7 {[%emt 0:01:26]} 33. Qa1 {[%emt 0:06:28]} Rba8 {[%emt 0:00:48]} 34. Qd4 {[%emt 0:00:48]} Bd7 {[%emt 0:00:57]} 35. Qb2 {[%emt 0:02:56]} Kf7 {[%emt 0:06:58]} 36. Kf2 {[%emt 0:01:35]} Rb8 {[%emt 0:01:51]} 37. Qd4 {[%emt 0:00:50]} Ke7 {[%emt 0:00:45]} 38. Kf3 {[%emt 0:03:21]} Be8 {[%emt 0:01:38]} 39. Bd3 {[%emt 0:00:36]} Bd7 {[%emt 0:00:38]} 40. Qb2 {[%emt 0:00:00]} Kd8 {[%emt 0:00:00]} 41. Ke2 {[%emt 0:06:21]} Ke7 {[%emt 0:04:06]} 42. Kd2 {[%emt 0:00:17]} Bc8 {[%emt 0:00:53]} 43. Kc3 {[%emt 0:00:32]} Qd7 {[%emt 0:01:07]} 44. Kd4 {[%emt 0:01:34]} Rba8 1/2-1/2

[Event "V Sunway Sitges Open 2018"]
[Site "Sitges"]
[Date "2018.12.16"]
[Round "3"]
[White "Bolat, Inayat"]
[Black "Peredo Claros, Luis Gabriel"]
[Result "1-0"]
[ECO "C02"]
[WhiteElo "1262"]
[BlackElo "1813"]
[Annotator "NA"]
[PlyCount "111"]
[EventDate "2018.12.14"]
[EventType "swiss"]
[EventCountry "ESP"]
[SourceTitle "playchess.com"]
[Source "ChessBase"]
[SourceQuality "1"]
[TimeControl "40/5400+30:1800+30"]

1. e4 {[%emt 0:00:00]} e6 {[%emt 0:12:42]} 2. d4 {[%emt 0:00:00]} d5 {[%emt 0:00:12]} 3. e5 {[%emt 0:00:00]} c5 {[%emt 0:00:24]} 4. dxc5 {[%emt 0:00:00]} Bxc5 {[%emt 0:00:22]} 5. Qg4 {[%emt 0:00:04]} Bf8 {[%emt 0:00:22]} 6. Nf3 {[%emt 0:00:25]} Nc6 {[%emt 0:00:35]} 7. Bd3 {[%emt 0:00:50]} Nge7 {[%emt 0:00:22]} 8. O-O {[%emt 0:00:30]} Ng6 {[%emt 0:00:21]} 9. Re1 {[%emt 0:00:43]} Nb4 {[%emt 0:01:16]} 10. Bd2 {[%emt 0:01:32]} Nxd3 {[%emt 0:00:56]} 11. cxd3 {[%emt 0:00:06]} Be7 {[%emt 0:00:08]} 12. Nc3 {[%emt 0:00:26]} O-O {[%emt 0:00:39]} 13. d4 {[%emt 0:00:32]} Bd7 {[%emt 0:00:07]} 14. Bg5 {[%emt 0:00:40]} f6 {[%emt 0:01:01]} 15. exf6 {[%emt 0:01:03]} Bxf6 {[%emt 0:00:20]} 16. Bxf6 {[%emt 0:00:13]} Qxf6 {[%emt 0:00:06]} 17. Rad1 {[%emt 0:00:40]} Rae8 {[%emt 0:00:19]} 18. Nxd5 {[%emt 0:01:43]} Qd8 {[%emt 0:00:58]} 19. Nc3 {[%emt 0:00:51]} e5 {[%emt 0:00:05]} 20. Qg3 {[%emt 0:00:17]} exd4 {[%emt 0:00:17]} 21. Nxd4 {[%emt 0:00:52]} Rxe1+ {[%emt 0:00:50]} 22. Rxe1 {[%emt 0:00:16]} Qb6 {[%emt 0:00:10]} 23. Nb3 {[%emt 0:03:37]} a5 {[%emt 0:00:08]} 24. Nd5 {[%emt 0:00:55]} Qb5 {[%emt 0:02:14]} 25. Ne7+ {[%emt 0:00:21]} Nxe7 26. Rxe7 g6 {[%emt 0:04:14]} 27. Qc3 {[%emt 0:00:54]} Rf7 {[%emt 0:00:29]} 28. Rxf7 {[%emt 0:00:17]} Kxf7 {[%emt 0:00:45]} 29. Nxa5 {[%emt 0:00:15]} Qf5 {[%emt 0:00:34]} 30. Qf3 {[%emt 0:00:28]} Qxf3 {[%emt 0:00:11]} 31. gxf3 b6 32. Nc4 {[%emt 0:00:25]} Be6 {[%emt 0:00:14]} 33. Nxb6 {[%emt 0:00:12]} Bxa2 34. Kg2 Bb3 {[%emt 0:02:51]} 35. Kg3 {[%emt 0:00:45]} Kf6 {[%emt 0:00:11]} 36. h4 {[%emt 0:00:53]} h6 {[%emt 0:00:08]} 37. f4 {[%emt 0:00:42]} Kf5 {[%emt 0:00:43]} 38. Kf3 {[%emt 0:00:52]} Bd1+ {[%emt 0:01:00]} 39. Kg3 {[%emt 0:00:50]} Bb3 {[%emt 0:02:21]} 40. f3 {[%emt 0:00:32]} h5 {[%emt 0:04:08]} 41. Nd7 {[%emt 0:30:17]} Bc2 {[%emt 0:32:00]} 42. Nc5 {[%emt 0:00:00]} Kf6 {[%emt 0:00:00]} 43. b4 {[%emt 0:00:00]} Ke7 {[%emt 0:00:00]} 44. b5 {[%emt 0:00:00]} Kd6 {[%emt 0:00:00]} 45. b6 {[%emt 0:00:00]} Kc6 {[%emt 0:00:00]} 46. b7 {[%emt 0:00:00]} Kc7 {[%emt 0:00:00]} 47. Kf2 {[%emt 0:00:00]} Kb8 {[%emt 0:00:00]} 48. Ke3 {[%emt 0:00:00]} Bd1 {[%emt 0:00:00]} 49. Ke4 {[%emt 0:00:00]} Kc7 {[%emt 0:00:00]} 50. f5 {[%emt 0:00:00]} Bc2+ {[%emt 0:00:00]} 51. Nd3 {[%emt 0:00:00]} gxf5+ {[%emt 0:00:00]} 52. Kxf5 {[%emt 0:00:00]} Bxd3+ {[%emt 0:00:00]} 53. Kg5 {[%emt 0:00:00]} Be2 {[%emt 0:00:00]} 54. f4 {[%emt 0:00:00]} Bf3 {[%emt 0:00:00]} 55. f5 {[%emt 0:00:00]} Kxb7 {[%emt 0:00:00]} 56. f6 1-0

[Event "V Sunway Sitges Open 2018"]
[Site "Sitges"]
[Date "2018.12.17"]
[Round "4"]
[White "Xu, Xiangyu"]
[Black "O`Donnell, Conor"]
[Result "1-0"]
[ECO "B12"]
[WhiteElo "2565"]
[BlackElo "2346"]
[Annotator "ChessBase"]
[PlyCount "75"]
[EventDate "2018.12.14"]
[EventType "swiss"]
[EventCountry "ESP"]
[SourceTitle "playchess.com"]
[Source "ChessBase"]
[SourceQuality "1"]
[TimeControl "40/5400+30:1800+30"]

1. e4 {[%emt 0:00:00]} c6 {[%emt 0:00:38]} 2. d4 {[%emt 0:00:00]} d5 {[%emt 0:00:04]} 3. f3 {[%emt 0:00:00]} dxe4 {[%emt 0:02:32]} 4. fxe4 {[%emt 0:00:00]} e5 {[%emt 0:00:05]} 5. Nf3 {[%emt 0:00:00]} Bg4 {[%emt 0:00:16]} 6. Bc4 {[%emt 0:00:01]} Nd7 {[%emt 0:00:11]} 7. c3 Bh5 {[%emt 0:02:53]} 8. O-O {[%emt 0:00:41]} Ngf6 {[%emt 0:02:33]} 9. Bg5 {[%emt 0:00:36]} Bd6 {[%emt 0:01:31]} 10. Nbd2 {[%emt 0:00:13]} O-O {[%emt 0:01:17]} 11. Qe1 {[%emt 0:00:10]} Qc7 12. Kh1 {[%emt 0:07:31]} Rfe8 {[%emt 0:05:37]} 13. Nh4 {[%emt 0:14:21]} Rad8 {[%emt 0:12:50]} 14. Nf5 {[%emt 0:00:43]} Bg6 {[%emt 0:11:32]} 15. Qh4 Bf8 {[%emt 0:06:18]} 16. Bb3 {[%emt 0:02:02]} b5 {[%emt 0:05:50]} 17. Rae1 {[%emt 0:01:25]} c5 {[%emt 0:02:59]} 18. d5 {[%emt 0:07:59]} c4 {[%emt 0:00:30]} 19. Bc2 Rb8 {[%emt 0:02:32]} 20. a3 {[%emt 0:03:38]} Rec8 {[%emt 0:04:37]} 21. Rf3 a5 {[%emt 0:02:13]} 22. Nf1 {[%emt 0:09:08]} b4 {[%emt 0:05:51]} 23. axb4 {[%emt 0:02:22]} axb4 {[%emt 0:00:24]} 24. Ba4 {[%emt 0:00:12]} Bxf5 {[%emt 0:04:26]} 25. Rxf5 bxc3 {[%emt 0:02:47]} 26. bxc3 {[%emt 0:03:59]} Qa5 {[%emt 0:00:52]} 27. Bc6 {[%emt 0:00:25]} Qxc3 28. h3 Qa3 {[%emt 0:11:14]} 29. Ne3 {[%emt 0:15:03]} c3 {[%emt 0:00:57]} 30. Ref1 Qb4 31. Bxd7 {[%emt 0:01:29]} Nxd7 {[%emt 0:05:07]} 32. Rxf7 Nc5 33. Be7 {[%emt 0:02:59]} Qxe4 {[%emt 0:03:29]} 34. Ng4 {[%emt 0:00:00]} Bxe7 {[%emt 0:04:16]} 35. Rxg7+ Kxg7 36. Qxe7+ {[%emt 0:00:23]} Kh8 {[%emt 0:01:07]} 37. Qf6+ {[%emt 0:00:06]} Kg8 {[%emt 0:00:04]} 38. Nh6# 1-0